[Event "*** SCC Grand Prix: Titled Tuesday Blitz"]
[Site "Chess.com"]
[Date "2020.10.13"]
[Round "6"]
[White "bait_or_mate"]
[Black "karenzadita"]
[Result "1-0"]
[WhiteElo "2517"]
[BlackElo "2331"]
[TimeControl "180+1"]
[EndTime "11:07:09 PDT"]
[Termination "bait_or_mate won by resignation"]

1. d4 {[%clk 0:03:00.9]} 1... Nf6 {[%clk 0:02:57.3]} 2. c4 {[%clk 0:03:01.8]}
2... e6 {[%clk 0:02:56.2]} 3. Nf3 {[%clk 0:03:01.9]} 3... d5 {[%clk 0:02:54.4]}
4. g3 {[%clk 0:03:02.1]} 4... Nbd7 {[%clk 0:02:53.8]} 5. Bg2 {[%clk 0:03:01.8]}
5... dxc4 {[%clk 0:02:51.3]} 6. O-O {[%clk 0:03:02]} 6... c6 {[%clk 0:02:49.4]}
7. Nfd2 {[%clk 0:02:35]} 7... Nb6 {[%clk 0:02:45.1]} 8. e3 {[%clk 0:02:34.2]}
8... Nfd5 {[%clk 0:02:14.1]} 9. Qe2 {[%clk 0:02:25.9]} 9... Be7 {[%clk
0:01:44.1]} 10. Nxc4 {[%clk 0:02:20.3]} 10... Nxc4 {[%clk 0:01:43.4]} 11. Qxc4
{[%clk 0:02:21.2]} 11... O-O {[%clk 0:01:43.3]} 12. Nc3 {[%clk 0:02:21.1]} 12...
a5 {[%clk 0:01:33.5]} 13. Rd1 {[%clk 0:02:15.1]} 13... Nb4 {[%clk 0:01:22.3]}
14. e4 {[%clk 0:02:06]} 14... b5 {[%clk 0:01:19.6]} 15. Qe2 {[%clk 0:02:05.1]}
15... Bb7 {[%clk 0:01:00]} 16. Bf4 {[%clk 0:01:57.2]} 16... Qb6 {[%clk
0:00:51.3]} 17. Rac1 {[%clk 0:01:51.4]} 17... Rfd8 {[%clk 0:00:50.1]} 18. Be3
{[%clk 0:01:34.4]} 18... Ba6 {[%clk 0:00:29.2]} 19. a3 {[%clk 0:01:31.5]} 19...
c5 {[%clk 0:00:24.4]} 20. dxc5 {[%clk 0:01:18.2]} 20... Bxc5 {[%clk 0:00:23.8]}
21. Bxc5 {[%clk 0:01:17.8]} 21... Qxc5 {[%clk 0:00:23.5]} 22. Rxd8+ {[%clk
0:01:05.1]} 22... Rxd8 {[%clk 0:00:22.5]} 23. axb4 {[%clk 0:01:05.2]} 23... Qxb4
{[%clk 0:00:18.1]} 24. h4 {[%clk 0:00:59.1]} 24... Qb3 {[%clk 0:00:17.4]} 25.
Qc2 {[%clk 0:00:54.9]} 25... Qb4 {[%clk 0:00:16.2]} 26. Bf1 {[%clk 0:00:54.2]}
26... h6 {[%clk 0:00:15.2]} 27. Na2 {[%clk 0:00:50.5]} 27... Qd4 {[%clk
0:00:13.9]} 28. Nc3 {[%clk 0:00:44.6]} 28... Qe5 {[%clk 0:00:10.9]} 29. Rd1
{[%clk 0:00:38.7]} 29... Rc8 {[%clk 0:00:10.4]} 30. Qd2 {[%clk 0:00:35.6]} 30...
Kh7 {[%clk 0:00:06.5]} 31. Qd6 {[%clk 0:00:34.6]} 31... Qxd6 {[%clk 0:00:03.7]}
32. Rxd6 {[%clk 0:00:35.5]} 32... b4 {[%clk 0:00:04.1]} 33. Rxa6 {[%clk
0:00:34.1]} 33... bxc3 {[%clk 0:00:03.8]} 34. bxc3 {[%clk 0:00:35]} 34... Rxc3
{[%clk 0:00:03.8]} 35. Rxa5 {[%clk 0:00:35.3]} 35... Rc1 {[%clk 0:00:04.1]} 36.
Kg2 {[%clk 0:00:34.7]} 36... Kg6 {[%clk 0:00:04.7]} 37. Bd3 {[%clk 0:00:32]}
37... Kf6 {[%clk 0:00:05]} 38. e5+ {[%clk 0:00:29.7]} 38... Ke7 {[%clk
0:00:03.8]} 39. Ra7+ {[%clk 0:00:29.5]} 39... Ke8 {[%clk 0:00:04.2]} 40. Bb5+
{[%clk 0:00:28.4]} 40... Kf8 {[%clk 0:00:03.8]} 41. Ra8+ {[%clk 0:00:28.2]} 1-0

[Event "*** SCC Grand Prix: Titled Tuesday Blitz"]
[Site "Chess.com"]
[Date "2020.10.13"]
[Round "6"]
[White "A-S-00"]
[Black "mjray79"]
[Result "0-1"]
[WhiteElo "2264"]
[BlackElo "2426"]
[TimeControl "180+1"]
[EndTime "11:07:09 PDT"]
[Termination "mjray79 won by resignation"]

1. e4 {[%clk 0:03:00]} 1... e5 {[%clk 0:02:59.8]} 2. Nf3 {[%clk 0:03:00.1]} 2...
Nc6 {[%clk 0:02:59]} 3. Bb5 {[%clk 0:03:00]} 3... a6 {[%clk 0:02:58.8]} 4. Ba4
{[%clk 0:03:00.2]} 4... Nf6 {[%clk 0:02:58.4]} 5. O-O {[%clk 0:02:59.9]} 5...
Be7 {[%clk 0:02:58.3]} 6. c3 {[%clk 0:02:59.4]} 6... Nxe4 {[%clk 0:02:57]} 7.
Re1 {[%clk 0:02:51.2]} 7... Nd6 {[%clk 0:02:57]} 8. Nxe5 {[%clk 0:02:48.6]} 8...
Nxe5 {[%clk 0:02:56.4]} 9. Rxe5 {[%clk 0:02:48.6]} 9... O-O {[%clk 0:02:56]} 10.
d4 {[%clk 0:02:47.5]} 10... Bf6 {[%clk 0:02:56]} 11. Re1 {[%clk 0:02:47.5]}
11... b5 {[%clk 0:02:49.3]} 12. Bc2 {[%clk 0:02:46.9]} 12... g6 {[%clk
0:02:47.2]} 13. Nd2 {[%clk 0:02:46.9]} 13... Bb7 {[%clk 0:02:45.5]} 14. Nf1
{[%clk 0:02:40.5]} 14... Re8 {[%clk 0:02:43.9]} 15. Ne3 {[%clk 0:02:36.9]} 15...
Nc4 {[%clk 0:02:38.8]} 16. b3 {[%clk 0:02:33.8]} 16... Nxe3 {[%clk 0:02:33.5]}
17. Bxe3 {[%clk 0:02:31.8]} 17... d6 {[%clk 0:02:29.5]} 18. c4 {[%clk 0:02:24]}
18... c5 {[%clk 0:02:09.9]} 19. Qd2 {[%clk 0:02:09.9]} 19... Qb6 {[%clk
0:02:00.6]} 20. dxc5 {[%clk 0:01:55.7]} 20... dxc5 {[%clk 0:02:01.5]} 21. Rad1
{[%clk 0:01:47.2]} 21... Rad8 {[%clk 0:01:26.6]} 22. Qe2 {[%clk 0:01:40.1]}
22... Qc6 {[%clk 0:01:26.1]} 23. Qg4 {[%clk 0:01:22]} 23... h5 {[%clk
0:00:59.1]} 24. Qh3 {[%clk 0:01:17.3]} 24... Bc8 {[%clk 0:00:45.7]} 25. Qg3
{[%clk 0:01:15]} 25... Rxd1 {[%clk 0:00:44.6]} 26. Rxd1 {[%clk 0:01:13.4]} 26...
Be5 {[%clk 0:00:44.5]} 27. f4 {[%clk 0:01:09.4]} 27... Bg7 {[%clk 0:00:41.7]}
28. Rd5 {[%clk 0:01:05.9]} 28... Bb7 {[%clk 0:00:38.2]} 29. Bxc5 {[%clk
0:00:55.9]} 29... Qc8 {[%clk 0:00:26.1]} 30. Rg5 {[%clk 0:00:47.1]} 30... Qe6
{[%clk 0:00:24.2]} 31. f5 {[%clk 0:00:34.4]} 31... Qe2 {[%clk 0:00:18.4]} 32.
fxg6 {[%clk 0:00:32]} 32... f6 {[%clk 0:00:16.5]} 33. Rxh5 {[%clk 0:00:15.6]}
33... Qxc2 {[%clk 0:00:16.2]} 34. h3 {[%clk 0:00:12.7]} 34... Qd1+ {[%clk
0:00:14.5]} 35. Kh2 {[%clk 0:00:11.8]} 35... Qxh5 {[%clk 0:00:14.7]} 36. Qc7
{[%clk 0:00:10.5]} 36... Qe5+ {[%clk 0:00:13.9]} 37. Qxe5 {[%clk 0:00:09.9]}
37... Rxe5 {[%clk 0:00:14.8]} 0-1

[Event "*** SCC Grand Prix: Titled Tuesday Blitz"]
[Site "Chess.com"]
[Date "2020.10.13"]
[Round "6"]
[White "Semen16"]
[Black "MariaFominykh"]
[Result "1-0"]
[WhiteElo "2466"]
[BlackElo "2307"]
[TimeControl "180+1"]
[EndTime "11:07:10 PDT"]
[Termination "Semen16 won on time"]

1. e4 {[%clk 0:03:00.9]} 1... d6 {[%clk 0:02:56.3]} 2. d4 {[%clk 0:03:00.3]}
2... Nf6 {[%clk 0:02:56.1]} 3. Nc3 {[%clk 0:03:00]} 3... e5 {[%clk 0:02:56]} 4.
Nf3 {[%clk 0:02:58.7]} 4... Nbd7 {[%clk 0:02:54.9]} 5. Be3 {[%clk 0:02:57.3]}
5... Be7 {[%clk 0:02:50.6]} 6. h3 {[%clk 0:02:56.8]} 6... c6 {[%clk 0:02:47.2]}
7. a4 {[%clk 0:02:56.6]} 7... O-O {[%clk 0:02:39.1]} 8. Be2 {[%clk 0:02:56.1]}
8... a5 {[%clk 0:02:33]} 9. O-O {[%clk 0:02:55.4]} 9... Re8 {[%clk 0:02:30]} 10.
dxe5 {[%clk 0:02:51.9]} 10... dxe5 {[%clk 0:02:27]} 11. Bd3 {[%clk 0:02:49.6]}
11... Qc7 {[%clk 0:02:21.3]} 12. Nb1 {[%clk 0:02:48.4]} 12... Bc5 {[%clk
0:02:13.3]} 13. Qe2 {[%clk 0:02:44.3]} 13... Qb6 {[%clk 0:02:10.8]} 14. Bxc5
{[%clk 0:02:40.2]} 14... Nxc5 {[%clk 0:02:06.9]} 15. Nbd2 {[%clk 0:02:33]} 15...
Qc7 {[%clk 0:01:30.9]} 16. Rfd1 {[%clk 0:02:24.3]} 16... Nh5 {[%clk 0:01:28.7]}
17. g3 {[%clk 0:02:15.6]} 17... Nxd3 {[%clk 0:01:10.1]} 18. cxd3 {[%clk
0:02:13]} 18... g6 {[%clk 0:00:59.6]} 19. Kg2 {[%clk 0:02:06.8]} 19... Qd7
{[%clk 0:00:51.9]} 20. Rh1 {[%clk 0:02:04.5]} 20... b5 {[%clk 0:00:51.6]} 21.
Nf1 {[%clk 0:01:42.1]} 21... b4 {[%clk 0:00:48.7]} 22. Ne3 {[%clk 0:01:40.8]}
22... Ba6 {[%clk 0:00:47.8]} 23. Nc4 {[%clk 0:01:39.5]} 23... Bxc4 {[%clk
0:00:42.4]} 24. dxc4 {[%clk 0:01:40.4]} 24... c5 {[%clk 0:00:37.3]} 25. Rhd1
{[%clk 0:01:37]} 25... Qc6 {[%clk 0:00:32.4]} 26. Rd3 {[%clk 0:01:25.5]} 26...
Nf6 {[%clk 0:00:31.5]} 27. Rad1 {[%clk 0:01:08.8]} 27... Nxe4 {[%clk 0:00:22.1]}
28. Rd5 {[%clk 0:01:08]} 28... f5 {[%clk 0:00:19.9]} 29. Kh2 {[%clk 0:01:00.1]}
29... Qxa4 {[%clk 0:00:16.5]} 30. Nxe5 {[%clk 0:00:53.5]} 30... Nf6 {[%clk
0:00:15.6]} 31. Rd6 {[%clk 0:00:51]} 31... Ne4 {[%clk 0:00:15.2]} 32. Rd7 {[%clk
0:00:44.2]} 32... Nf6 {[%clk 0:00:14.7]} 33. Rc7 {[%clk 0:00:38.2]} 33... Re6
{[%clk 0:00:11.9]} 34. f4 {[%clk 0:00:31]} 34... Rae8 {[%clk 0:00:11.5]} 35. Qf2
{[%clk 0:00:29.5]} 35... Ne4 {[%clk 0:00:10.9]} 36. Qe2 {[%clk 0:00:28.2]} 36...
Qb3 {[%clk 0:00:10.9]} 37. Rd3 {[%clk 0:00:27.3]} 37... Qa2 {[%clk 0:00:10.8]}
38. Rdd7 {[%clk 0:00:26.1]} 38... Nf6 {[%clk 0:00:05.9]} 39. Rg7+ {[%clk
0:00:26.2]} 39... Kh8 {[%clk 0:00:03.3]} 40. Qf2 {[%clk 0:00:25.7]} 1-0

[Event "*** SCC Grand Prix: Titled Tuesday Blitz"]
[Site "Chess.com"]
[Date "2020.10.13"]
[Round "6"]
[White "DrMamaliga"]
[Black "PotapovaM"]
[Result "0-1"]
[WhiteElo "2359"]
[BlackElo "2533"]
[TimeControl "180+1"]
[EndTime "11:07:11 PDT"]
[Termination "PotapovaM won by resignation"]

1. e4 {[%clk 0:03:00.3]} 1... c5 {[%clk 0:02:59.7]} 2. Nf3 {[%clk 0:02:57]} 2...
d6 {[%clk 0:02:59.8]} 3. Bb5+ {[%clk 0:02:55.7]} 3... Nd7 {[%clk 0:02:59.3]} 4.
d4 {[%clk 0:02:52.2]} 4... cxd4 {[%clk 0:03:00.2]} 5. Qxd4 {[%clk 0:02:51.2]}
5... a6 {[%clk 0:02:59.9]} 6. Bxd7+ {[%clk 0:02:50.1]} 6... Bxd7 {[%clk
0:03:00.8]} 7. Nc3 {[%clk 0:02:48.8]} 7... e5 {[%clk 0:02:41.5]} 8. Qd3 {[%clk
0:02:47.7]} 8... h6 {[%clk 0:02:41.4]} 9. O-O {[%clk 0:02:45.9]} 9... Nf6 {[%clk
0:02:40.7]} 10. Rd1 {[%clk 0:02:42.6]} 10... Qc7 {[%clk 0:02:36.8]} 11. a4
{[%clk 0:02:40.4]} 11... Be7 {[%clk 0:02:35.4]} 12. Nd2 {[%clk 0:02:38.7]} 12...
Be6 {[%clk 0:02:34.8]} 13. Nf1 {[%clk 0:02:28.7]} 13... O-O {[%clk 0:02:24.3]}
14. Ne3 {[%clk 0:02:28.1]} 14... Rac8 {[%clk 0:02:17.1]} 15. a5 {[%clk
0:02:22.7]} 15... Rfd8 {[%clk 0:02:14.6]} 16. Bd2 {[%clk 0:02:20.8]} 16... Bc4
{[%clk 0:02:02.9]} 17. Nxc4 {[%clk 0:02:18.6]} 17... Qxc4 {[%clk 0:02:03.8]} 18.
Qxc4 {[%clk 0:02:18.5]} 18... Rxc4 {[%clk 0:02:04.7]} 19. f3 {[%clk 0:02:14.4]}
19... d5 {[%clk 0:02:03.3]} 20. exd5 {[%clk 0:02:12.6]} 20... Nxd5 {[%clk
0:02:04.2]} 21. Nxd5 {[%clk 0:02:05.8]} 21... Rxd5 {[%clk 0:02:05.1]} 22. Bc3
{[%clk 0:02:06.1]} 22... Rb5 {[%clk 0:01:49.7]} 23. Rd7 {[%clk 0:01:47.2]} 23...
Bb4 {[%clk 0:01:49.4]} 24. Bxb4 {[%clk 0:01:23.8]} 24... Rbxb4 {[%clk
0:01:50.3]} 25. Re1 {[%clk 0:01:10.1]} 25... Rxc2 {[%clk 0:01:48.3]} 26. Rxe5
{[%clk 0:01:03]} 26... Rbxb2 {[%clk 0:01:46.8]} 27. h3 {[%clk 0:00:55.7]} 27...
Rxg2+ {[%clk 0:01:45.3]} 28. Kf1 {[%clk 0:00:53.7]} 28... Rh2 {[%clk 0:01:44.9]}
29. Kg1 {[%clk 0:00:53.4]} 29... Rhg2+ {[%clk 0:01:39.3]} 30. Kf1 {[%clk
0:00:53]} 30... Rgf2+ {[%clk 0:01:40.2]} 31. Kg1 {[%clk 0:00:51.6]} 31... Rxf3
{[%clk 0:01:40.7]} 32. Re8+ {[%clk 0:00:51.8]} 32... Kh7 {[%clk 0:01:40.3]} 33.
Rb8 {[%clk 0:00:52.7]} 33... Rc3 {[%clk 0:01:33]} 34. Rxf7 {[%clk 0:00:50]}
34... Rc1+ {[%clk 0:01:32]} 35. Rf1 {[%clk 0:00:49.9]} 35... Rxf1+ {[%clk
0:01:32.5]} 36. Kxf1 {[%clk 0:00:50.8]} 36... Kg6 {[%clk 0:01:30]} 37. Rd8
{[%clk 0:00:49.8]} 37... Kh5 {[%clk 0:01:29]} 38. Rd7 {[%clk 0:00:49.3]} 38...
g5 {[%clk 0:01:28.8]} 39. Rd4 {[%clk 0:00:49.6]} 39... Rb5 {[%clk 0:01:27.9]}
40. Ra4 {[%clk 0:00:47.9]} 40... Kg6 {[%clk 0:01:28.5]} 41. Kg2 {[%clk 0:00:47]}
41... h5 {[%clk 0:01:28.7]} 42. Kg3 {[%clk 0:00:46.5]} 42... Rb3+ {[%clk
0:01:28.4]} 43. Kg2 {[%clk 0:00:47.1]} 43... Kf5 {[%clk 0:01:28.9]} 44. Rc4
{[%clk 0:00:47.1]} 44... Rb5 {[%clk 0:01:27.6]} 45. Ra4 {[%clk 0:00:46.8]} 45...
g4 {[%clk 0:01:21.7]} 46. hxg4+ {[%clk 0:00:46.8]} 46... hxg4 {[%clk 0:01:22.6]}
47. Kg3 {[%clk 0:00:47.7]} 47... Rb3+ {[%clk 0:01:22.6]} 48. Kg2 {[%clk
0:00:46.3]} 48... Kg5 {[%clk 0:01:23.4]} 49. Rd4 {[%clk 0:00:45.3]} 49... Kh4
{[%clk 0:01:22.3]} 50. Rd7 {[%clk 0:00:43.1]} 50... Rb2+ {[%clk 0:01:21.9]} 51.
Kg1 {[%clk 0:00:42.7]} 51... Kh3 {[%clk 0:01:21.2]} 52. Rd3+ {[%clk 0:00:32.9]}
52... g3 {[%clk 0:01:19.8]} 53. Rd1 {[%clk 0:00:32.8]} 53... Ra2 {[%clk
0:01:18.8]} 54. Rb1 {[%clk 0:00:32.3]} 54... Rxa5 {[%clk 0:01:18.4]} 55. Kh1
{[%clk 0:00:32.8]} 55... Ra2 {[%clk 0:01:10.6]} 56. Rc1 {[%clk 0:00:30.5]} 56...
b5 {[%clk 0:01:07.2]} 57. Rb1 {[%clk 0:00:29.9]} 57... b4 {[%clk 0:01:06.1]} 58.
Rc1 {[%clk 0:00:29.9]} 58... b3 {[%clk 0:01:03.6]} 59. Rc8 {[%clk 0:00:25.8]}
59... Ra1+ {[%clk 0:01:02.9]} 0-1

[Event "*** SCC Grand Prix: Titled Tuesday Blitz"]
[Site "Chess.com"]
[Date "2020.10.13"]
[Round "6"]
[White "lider34"]
[Black "kinga2008"]
[Result "1-0"]
[WhiteElo "2382"]
[BlackElo "2189"]
[TimeControl "180+1"]
[EndTime "11:07:11 PDT"]
[Termination "lider34 won by resignation"]

1. e4 {[%clk 0:03:00.9]} 1... c5 {[%clk 0:03:00.9]} 2. c3 {[%clk 0:03:00.1]}
2... d5 {[%clk 0:02:57.8]} 3. exd5 {[%clk 0:02:59.9]} 3... Qxd5 {[%clk
0:02:56.5]} 4. d4 {[%clk 0:03:00.4]} 4... cxd4 {[%clk 0:02:45.3]} 5. cxd4 {[%clk
0:02:59.4]} 5... Nc6 {[%clk 0:02:42.7]} 6. Nf3 {[%clk 0:02:59.2]} 6... Bg4
{[%clk 0:02:41]} 7. Nc3 {[%clk 0:02:58]} 7... Qh5 {[%clk 0:02:38.4]} 8. d5
{[%clk 0:02:56.2]} 8... Nb8 {[%clk 0:02:33.1]} 9. Qb3 {[%clk 0:02:45.9]} 9... b6
{[%clk 0:02:17.5]} 10. Nd4 {[%clk 0:02:35.6]} 10... Qe5+ {[%clk 0:02:13]} 11.
Be3 {[%clk 0:02:34.6]} 11... Nf6 {[%clk 0:02:11.6]} 12. h3 {[%clk 0:02:30.2]}
12... Bd7 {[%clk 0:02:09.1]} 13. Bc4 {[%clk 0:02:18.8]} 13... g6 {[%clk
0:02:03.7]} 14. O-O {[%clk 0:02:17.9]} 14... Bg7 {[%clk 0:02:03.2]} 15. Rfe1
{[%clk 0:02:15.1]} 15... O-O {[%clk 0:02:01.8]} 16. Rad1 {[%clk 0:02:14]} 16...
a5 {[%clk 0:01:49.7]} 17. Qxb6 {[%clk 0:02:10.1]} 17... Qh5 {[%clk 0:01:46.5]}
18. Qb7 {[%clk 0:02:06.1]} 18... Bxh3 {[%clk 0:01:26.3]} 19. Qxa8 {[%clk
0:01:44.7]} 19... Nbd7 {[%clk 0:01:09.9]} 20. Qb7 {[%clk 0:01:33.4]} 20... Nc5
{[%clk 0:01:05.9]} 21. Qxe7 {[%clk 0:01:30.8]} 21... Ng4 {[%clk 0:00:54.4]} 22.
Nf3 {[%clk 0:01:16.9]} 22... Bf6 {[%clk 0:00:46.5]} 23. Qxc5 {[%clk 0:01:13]}
23... Ne5 {[%clk 0:00:43.5]} 24. Nxe5 {[%clk 0:01:02.5]} 24... Bxe5 {[%clk
0:00:42.6]} 25. Be2 {[%clk 0:00:48.8]} 25... Bg4 {[%clk 0:00:23.1]} 26. Bxg4
{[%clk 0:00:46.4]} 26... Qh2+ {[%clk 0:00:20.2]} 27. Kf1 {[%clk 0:00:45.2]}
27... Rb8 {[%clk 0:00:19.9]} 28. Nb5 {[%clk 0:00:39.5]} 28... Qh1+ {[%clk
0:00:11.9]} 29. Ke2 {[%clk 0:00:38.4]} 29... Qh4 {[%clk 0:00:12.8]} 30. Bf3
{[%clk 0:00:35.8]} 30... Qa4 {[%clk 0:00:12.8]} 31. Bd4 {[%clk 0:00:24.3]} 31...
Rxb5 {[%clk 0:00:11.3]} 32. Qc8+ {[%clk 0:00:23]} 32... Kg7 {[%clk 0:00:11.1]}
33. Bxe5+ {[%clk 0:00:23.7]} 33... f6 {[%clk 0:00:09]} 34. Qd7+ {[%clk
0:00:22.3]} 34... Kh6 {[%clk 0:00:07]} 35. Rh1+ {[%clk 0:00:20.7]} 35... Kg5
{[%clk 0:00:06.4]} 36. Qg4+ {[%clk 0:00:19.7]} 36... Qxg4 {[%clk 0:00:05.3]} 37.
Bxg4 {[%clk 0:00:20.6]} 1-0

[Event "*** SCC Grand Prix: Titled Tuesday Blitz"]
[Site "Chess.com"]
[Date "2020.10.13"]
[Round "6"]
[White "bascheyaro"]
[Black "Mr_Sinigami"]
[Result "0-1"]
[WhiteElo "2718"]
[BlackElo "2519"]
[TimeControl "180+1"]
[EndTime "11:07:14 PDT"]
[Termination "Mr_Sinigami won on time"]

1. d4 {[%clk 0:03:00.9]} 1... Nf6 {[%clk 0:02:59.1]} 2. Bf4 {[%clk 0:03:00.4]}
2... g6 {[%clk 0:02:58]} 3. e3 {[%clk 0:03:00.5]} 3... Bg7 {[%clk 0:02:58]} 4.
Nf3 {[%clk 0:03:00.8]} 4... O-O {[%clk 0:02:57.6]} 5. h3 {[%clk 0:03:00.1]} 5...
d6 {[%clk 0:02:57.7]} 6. Bc4 {[%clk 0:03:00]} 6... Nfd7 {[%clk 0:02:53.1]} 7.
Nc3 {[%clk 0:02:56.4]} 7... h6 {[%clk 0:02:37.8]} 8. O-O {[%clk 0:02:46.1]} 8...
e5 {[%clk 0:02:34.3]} 9. Bg3 {[%clk 0:02:46.3]} 9... Nc6 {[%clk 0:02:33]} 10.
dxe5 {[%clk 0:02:35.2]} 10... Ndxe5 {[%clk 0:02:23.7]} 11. Bb3 {[%clk
0:02:33.2]} 11... Kh7 {[%clk 0:02:11]} 12. Nxe5 {[%clk 0:02:14.2]} 12... Nxe5
{[%clk 0:02:09.3]} 13. Qe2 {[%clk 0:02:07.6]} 13... Nd7 {[%clk 0:02:05.5]} 14.
Rad1 {[%clk 0:02:03.3]} 14... Nc5 {[%clk 0:02:03.5]} 15. Qf3 {[%clk 0:01:59.7]}
15... Be6 {[%clk 0:01:43.8]} 16. Bd5 {[%clk 0:00:59.7]} 16... Rb8 {[%clk
0:01:35.5]} 17. b4 {[%clk 0:00:50]} 17... Na6 {[%clk 0:01:17.4]} 18. Ne2 {[%clk
0:00:32.1]} 18... Bxd5 {[%clk 0:01:10.4]} 19. Qxd5 {[%clk 0:00:29.5]} 19... Nxb4
{[%clk 0:01:10.3]} 20. Qb3 {[%clk 0:00:29.9]} 20... Na6 {[%clk 0:01:07.5]} 21.
Nf4 {[%clk 0:00:29.8]} 21... Nc5 {[%clk 0:01:06.4]} 22. Qa3 {[%clk 0:00:28.6]}
22... a6 {[%clk 0:01:03.8]} 23. Nd5 {[%clk 0:00:28.1]} 23... Ne4 {[%clk
0:00:55.7]} 24. Qb4 {[%clk 0:00:23.7]} 24... Re8 {[%clk 0:00:50.3]} 25. Bh2
{[%clk 0:00:14.7]} 25... f5 {[%clk 0:00:48.9]} 26. c4 {[%clk 0:00:13.3]} 26...
Qd7 {[%clk 0:00:46.9]} 27. Rc1 {[%clk 0:00:11]} 27... Qf7 {[%clk 0:00:45.9]} 28.
Rfd1 {[%clk 0:00:10.4]} 28... b6 {[%clk 0:00:44.6]} 29. Qa4 {[%clk 0:00:09.7]}
29... a5 {[%clk 0:00:43.6]} 30. Qc6 {[%clk 0:00:09.9]} 30... Rbc8 {[%clk
0:00:42.3]} 31. Bf4 {[%clk 0:00:08.8]} 31... Nc5 {[%clk 0:00:40.6]} 32. Nc3
{[%clk 0:00:07.5]} 32... Bxc3 {[%clk 0:00:32.6]} 33. Rxc3 {[%clk 0:00:08.4]}
33... Qd7 {[%clk 0:00:31.5]} 34. Qd5 {[%clk 0:00:06.8]} 34... Qe6 {[%clk
0:00:28.9]} 35. Qc6 {[%clk 0:00:06.2]} 35... Qd7 {[%clk 0:00:28.6]} 36. Qd5
{[%clk 0:00:06.4]} 36... Re7 {[%clk 0:00:27.5]} 37. Rc2 {[%clk 0:00:06.2]} 37...
Rce8 {[%clk 0:00:27.1]} 38. h4 {[%clk 0:00:03.5]} 38... Qc8 {[%clk 0:00:23.9]}
39. Qc6 {[%clk 0:00:03.1]} 39... Qb7 {[%clk 0:00:23.1]} 0-1

[Event "*** SCC Grand Prix: Titled Tuesday Blitz"]
[Site "Chess.com"]
[Date "2020.10.13"]
[Round "6"]
[White "louis198"]
[Black "Kaua18"]
[Result "1/2-1/2"]
[WhiteElo "2576"]
[BlackElo "2363"]
[TimeControl "180+1"]
[EndTime "11:07:14 PDT"]
[Termination "Game drawn by repetition"]

1. d4 {[%clk 0:02:59.1]} 1... Nf6 {[%clk 0:02:58.4]} 2. Bf4 {[%clk 0:02:59]}
2... b6 {[%clk 0:02:56.3]} 3. e3 {[%clk 0:02:59.5]} 3... Bb7 {[%clk 0:02:54.4]}
4. h3 {[%clk 0:02:58.2]} 4... e6 {[%clk 0:02:52.2]} 5. Nf3 {[%clk 0:02:58.1]}
5... c5 {[%clk 0:02:52]} 6. c3 {[%clk 0:02:55.6]} 6... Be7 {[%clk 0:02:52.1]} 7.
a4 {[%clk 0:02:55.3]} 7... a6 {[%clk 0:02:48.4]} 8. Nbd2 {[%clk 0:02:55.7]} 8...
O-O {[%clk 0:02:48]} 9. Bd3 {[%clk 0:02:54.5]} 9... d6 {[%clk 0:02:46.9]} 10.
O-O {[%clk 0:02:54]} 10... cxd4 {[%clk 0:02:46.9]} 11. exd4 {[%clk 0:02:54.1]}
11... Nbd7 {[%clk 0:02:44.2]} 12. Re1 {[%clk 0:02:54.2]} 12... Re8 {[%clk
0:02:43.9]} 13. Qb3 {[%clk 0:02:46.7]} 13... Bf8 {[%clk 0:02:34.7]} 14. Rac1
{[%clk 0:02:08.1]} 14... Qc7 {[%clk 0:02:34.1]} 15. Bb1 {[%clk 0:02:06.4]} 15...
Rac8 {[%clk 0:02:28.6]} 16. c4 {[%clk 0:01:59.8]} 16... h6 {[%clk 0:02:24.9]}
17. Qd3 {[%clk 0:01:58.8]} 17... e5 {[%clk 0:02:17.6]} 18. dxe5 {[%clk
0:01:48.9]} 18... Nxe5 {[%clk 0:02:14.8]} 19. Nxe5 {[%clk 0:01:27.4]} 19... dxe5
{[%clk 0:02:15.7]} 20. Bh2 {[%clk 0:01:27.8]} 20... Rcd8 {[%clk 0:02:12.4]} 21.
Qc2 {[%clk 0:01:22.6]} 21... Bb4 {[%clk 0:02:03.8]} 22. Re2 {[%clk 0:01:16.9]}
22... Bxd2 {[%clk 0:00:55.4]} 23. Rxd2 {[%clk 0:01:16.7]} 23... Be4 {[%clk
0:00:53.2]} 24. Qd1 {[%clk 0:01:05.9]} 24... Rxd2 {[%clk 0:00:51.1]} 25. Qxd2
{[%clk 0:01:06.3]} 25... Bxb1 {[%clk 0:00:51.7]} 26. Rxb1 {[%clk 0:01:06.6]}
26... Qxc4 {[%clk 0:00:51.9]} 27. b4 {[%clk 0:01:04.3]} 27... b5 {[%clk
0:00:49.3]} 28. axb5 {[%clk 0:01:03.6]} 28... axb5 {[%clk 0:00:47.9]} 29. Rc1
{[%clk 0:01:04.1]} 29... Qd4 {[%clk 0:00:47.9]} 30. Qe1 {[%clk 0:01:00]} 30...
Nd5 {[%clk 0:00:40.9]} 31. Rc5 {[%clk 0:00:42.5]} 31... Qxb4 {[%clk 0:00:34]}
32. Qxb4 {[%clk 0:00:41.6]} 32... Nxb4 {[%clk 0:00:34.9]} 33. Rxb5 {[%clk
0:00:41.9]} 33... Nd3 {[%clk 0:00:32.3]} 34. f3 {[%clk 0:00:42.1]} 34... f6
{[%clk 0:00:31.3]} 35. Kf1 {[%clk 0:00:42.3]} 35... Rc8 {[%clk 0:00:26.1]} 36.
Ke2 {[%clk 0:00:42.6]} 36... Nc5 {[%clk 0:00:26.3]} 37. Bg1 {[%clk 0:00:42.4]}
37... Ne6 {[%clk 0:00:26.7]} 38. Be3 {[%clk 0:00:39.1]} 38... Rc2+ {[%clk
0:00:26.5]} 39. Kf1 {[%clk 0:00:39.5]} 39... Kf7 {[%clk 0:00:25.7]} 40. Rb6
{[%clk 0:00:38]} 40... Rc3 {[%clk 0:00:21.7]} 41. Kf2 {[%clk 0:00:37.8]} 41...
Rc2+ {[%clk 0:00:19.9]} 42. Kf1 {[%clk 0:00:38.1]} 42... Nf8 {[%clk 0:00:16.6]}
43. Rb4 {[%clk 0:00:30.9]} 43... Ne6 {[%clk 0:00:15.9]} 44. Rb6 {[%clk
0:00:30.6]} 1/2-1/2